[Event "*** Titled Tuesday Blitz"]
[Site "Chess.com"]
[Date "2020.05.26"]
[Round "3"]
[White "mortngabriel"]
[Black "marszach123"]
[Result "1-0"]
[WhiteElo "2440"]
[BlackElo "2202"]
[TimeControl "180+1"]
[EndTime "10:27:15 PDT"]
[Termination "mortngabriel won on time"]

1. Nf3 {[%clk 0:03:00.9]} 1... Nf6 {[%clk 0:02:58.3]} 2. c4 {[%clk 0:02:38.1]}
2... e6 {[%clk 0:02:57.7]} 3. Nc3 {[%clk 0:02:36.7]} 3... Bb4 {[%clk 0:02:56.1]}
4. Qc2 {[%clk 0:02:35.8]} 4... O-O {[%clk 0:02:51.2]} 5. e4 {[%clk 0:02:33.4]}
5... Bxc3 {[%clk 0:02:48]} 6. dxc3 {[%clk 0:02:34.2]} 6... b6 {[%clk 0:02:43]}
7. e5 {[%clk 0:02:33.2]} 7... Ne8 {[%clk 0:02:41.6]} 8. Ng5 {[%clk 0:02:29.3]}
8... f5 {[%clk 0:02:30.9]} 9. exf6 {[%clk 0:02:14.8]} 9... Nxf6 {[%clk
0:02:30.8]} 10. Bd3 {[%clk 0:02:15.3]} 10... h6 {[%clk 0:02:29.6]} 11. Nh7
{[%clk 0:02:14.7]} 11... Nxh7 {[%clk 0:02:26.9]} 12. Bxh7+ {[%clk 0:02:15.6]}
12... Kh8 {[%clk 0:02:27.4]} 13. Be3 {[%clk 0:02:06.5]} 13... Bb7 {[%clk
0:02:17.9]} 14. O-O-O {[%clk 0:02:04.6]} 14... d6 {[%clk 0:02:01.7]} 15. h4
{[%clk 0:01:56]} 15... Nd7 {[%clk 0:01:58.1]} 16. f3 {[%clk 0:01:48.1]} 16...
Nf6 {[%clk 0:01:57.1]} 17. Bg6 {[%clk 0:01:48.5]} 17... Qe7 {[%clk 0:01:51.4]}
18. h5 {[%clk 0:01:47.1]} 18... e5 {[%clk 0:01:47.2]} 19. Rhe1 {[%clk
0:01:45.4]} 19... a5 {[%clk 0:01:29.5]} 20. Qd2 {[%clk 0:01:45.3]} 20... a4
{[%clk 0:01:19]} 21. Bb1 {[%clk 0:01:43]} 21... a3 {[%clk 0:01:16]} 22. b3
{[%clk 0:01:42.7]} 22... Qf7 {[%clk 0:01:01]} 23. Qc2 {[%clk 0:01:23.1]} 23...
e4 {[%clk 0:01:00.5]} 24. g4 {[%clk 0:01:17.9]} 24... exf3 {[%clk 0:00:55.5]}
25. g5 {[%clk 0:01:10.9]} 25... Be4 {[%clk 0:00:42.5]} 26. Qd2 {[%clk
0:01:08.4]} 26... hxg5 {[%clk 0:00:35.2]} 27. Bxg5 {[%clk 0:00:55.6]} 27... Bxb1
{[%clk 0:00:32.4]} 28. Kxb1 {[%clk 0:00:53.2]} 28... Rae8 {[%clk 0:00:15]} 29.
h6 {[%clk 0:00:51.6]} 29... g6 {[%clk 0:00:02.9]} 30. Rxe8 {[%clk 0:00:49.6]}
30... Rxe8 {[%clk 0:00:02.4]} 31. Qf4 {[%clk 0:00:49.3]} 31... Re6 {[%clk
0:00:01.9]} 32. Qxf3 {[%clk 0:00:46.6]} 32... Kh7 {[%clk 0:00:02]} 33. Rf1
{[%clk 0:00:44.7]} 1-0

[Event "*** Titled Tuesday Blitz"]
[Site "Chess.com"]
[Date "2020.05.26"]
[Round "3"]
[White "Revnov"]
[Black "CarrotsandPizza"]
[Result "1-0"]
[WhiteElo "2677"]
[BlackElo "2371"]
[TimeControl "180+1"]
[EndTime "10:27:16 PDT"]
[Termination "Revnov won on time"]

1. e4 {[%clk 0:03:00.9]} 1... c5 {[%clk 0:02:59.1]} 2. Nf3 {[%clk 0:03:01.1]}
2... Qb6 {[%clk 0:02:59.5]} 3. c3 {[%clk 0:02:59.7]} 3... e6 {[%clk 0:02:58.9]}
4. d4 {[%clk 0:02:59.6]} 4... d5 {[%clk 0:02:59.2]} 5. exd5 {[%clk 0:02:57.4]}
5... exd5 {[%clk 0:03:00.1]} 6. Bd3 {[%clk 0:02:55.6]} 6... c4 {[%clk
0:03:00.3]} 7. Bc2 {[%clk 0:02:55.2]} 7... Bd6 {[%clk 0:03:01.2]} 8. O-O {[%clk
0:02:53.7]} 8... Ne7 {[%clk 0:03:01.7]} 9. Re1 {[%clk 0:02:45.2]} 9... Nc6
{[%clk 0:02:59.8]} 10. Nbd2 {[%clk 0:02:45.3]} 10... O-O {[%clk 0:02:58.2]} 11.
Nf1 {[%clk 0:02:45.1]} 11... Bf5 {[%clk 0:02:53.4]} 12. Ne3 {[%clk 0:02:44.4]}
12... Bg6 {[%clk 0:02:44.3]} 13. h4 {[%clk 0:02:42.8]} 13... Rae8 {[%clk
0:02:41.1]} 14. h5 {[%clk 0:02:42.6]} 14... Bxc2 {[%clk 0:02:25.2]} 15. Qxc2
{[%clk 0:02:43.5]} 15... h6 {[%clk 0:02:25.3]} 16. Ng4 {[%clk 0:02:32.3]} 16...
Kh8 {[%clk 0:02:23]} 17. Bd2 {[%clk 0:02:10.6]} 17... Ng8 {[%clk 0:02:21.2]} 18.
Qf5 {[%clk 0:01:52.3]} 18... Qd8 {[%clk 0:02:19.4]} 19. b3 {[%clk 0:01:43.3]}
19... cxb3 {[%clk 0:02:04.7]} 20. axb3 {[%clk 0:01:44.2]} 20... Re7 {[%clk
0:02:03.5]} 21. g3 {[%clk 0:01:41.2]} 21... Bc7 {[%clk 0:02:00.4]} 22. Kg2
{[%clk 0:01:37.1]} 22... Rfe8 {[%clk 0:01:59.8]} 23. Re3 {[%clk 0:01:20.9]}
23... Rxe3 {[%clk 0:01:55.4]} 24. Bxe3 {[%clk 0:01:21.8]} 24... Re7 {[%clk
0:01:40.8]} 25. c4 {[%clk 0:01:21.6]} 25... a6 {[%clk 0:01:38.5]} 26. Rc1 {[%clk
0:01:17.1]} 26... Qd7 {[%clk 0:00:52]} 27. Nh4 {[%clk 0:01:12.3]} 27... Nb4
{[%clk 0:00:40.8]} 28. Qf3 {[%clk 0:01:06.6]} 28... Re4 {[%clk 0:00:28.2]} 29.
Nh2 {[%clk 0:00:59.1]} 29... Nd3 {[%clk 0:00:12.3]} 30. Rd1 {[%clk 0:00:56.9]}
30... Rxh4 {[%clk 0:00:03.2]} 31. gxh4 {[%clk 0:00:54]} 31... dxc4 {[%clk
0:00:01.8]} 32. bxc4 {[%clk 0:00:52.5]} 32... Nb4 {[%clk 0:00:02.7]} 33. d5
{[%clk 0:00:50.4]} 33... Nf6 {[%clk 0:00:02.5]} 34. Nf1 {[%clk 0:00:49]} 34...
Qd6 {[%clk 0:00:02.5]} 35. Ng3 {[%clk 0:00:48.6]} 35... b6 {[%clk 0:00:01.2]}
36. Nf5 {[%clk 0:00:44.3]} 1-0

[Event "*** Titled Tuesday Blitz"]
[Site "Chess.com"]
[Date "2020.05.26"]
[Round "3"]
[White "pfalcon1949"]
[Black "51616516516"]
[Result "1-0"]
[WhiteElo "2060"]
[BlackElo "2345"]
[TimeControl "180+1"]
[EndTime "10:27:17 PDT"]
[Termination "pfalcon1949 won on time"]

1. d4 {[%clk 0:03:00.9]} 1... Nf6 {[%clk 0:02:59.2]} 2. c4 {[%clk 0:03:00.6]}
2... g6 {[%clk 0:02:59.7]} 3. Nc3 {[%clk 0:03:00.7]} 3... Bg7 {[%clk 0:03:00.3]}
4. e4 {[%clk 0:03:01]} 4... d6 {[%clk 0:03:00.8]} 5. Nge2 {[%clk 0:02:59.9]}
5... O-O {[%clk 0:03:00.4]} 6. Ng3 {[%clk 0:03:00]} 6... e5 {[%clk 0:03:00.9]}
7. d5 {[%clk 0:02:59.3]} 7... a5 {[%clk 0:03:01.3]} 8. Be2 {[%clk 0:02:59.5]}
8... Na6 {[%clk 0:03:00.6]} 9. h4 {[%clk 0:02:59.6]} 9... h5 {[%clk 0:03:00.5]}
10. Bg5 {[%clk 0:02:59.6]} 10... Qe8 {[%clk 0:03:00.3]} 11. Qd2 {[%clk
0:02:55.7]} 11... Ng4 {[%clk 0:02:59.7]} 12. f3 {[%clk 0:02:47.5]} 12... f6
{[%clk 0:02:52.5]} 13. fxg4 {[%clk 0:02:38.3]} 13... fxg5 {[%clk 0:02:52.2]} 14.
gxh5 {[%clk 0:02:32.6]} 14... gxh4 {[%clk 0:02:32.2]} 15. Rxh4 {[%clk
0:02:31.2]} 15... Rf4 {[%clk 0:02:11.3]} 16. Rh1 {[%clk 0:02:10.8]} 16... Bh6
{[%clk 0:01:49.7]} 17. Qd3 {[%clk 0:01:46.2]} 17... Nb4 {[%clk 0:01:47.2]} 18.
Qb1 {[%clk 0:01:41.6]} 18... Bg4 {[%clk 0:01:42.5]} 19. a3 {[%clk 0:01:29.6]}
19... Na6 {[%clk 0:01:41.1]} 20. Qd3 {[%clk 0:01:28.5]} 20... Nc5 {[%clk
0:01:40.1]} 21. Qd1 {[%clk 0:01:26.9]} 21... Bxe2 {[%clk 0:01:35.9]} 22. Qxe2
{[%clk 0:01:24.6]} 22... Nb3 {[%clk 0:01:31]} 23. Rd1 {[%clk 0:01:13.7]} 23...
Nd4 {[%clk 0:01:31]} 24. Qd3 {[%clk 0:01:04.6]} 24... Qf7 {[%clk 0:01:12.5]} 25.
Nce2 {[%clk 0:00:52.5]} 25... Nxe2 {[%clk 0:01:00.5]} 26. Qxe2 {[%clk
0:00:49.3]} 26... Rf8 {[%clk 0:00:55.1]} 27. Rf1 {[%clk 0:00:45]} 27... Bg5
{[%clk 0:00:48.4]} 28. hxg6 {[%clk 0:00:41]} 28... Qxg6 {[%clk 0:00:38.6]} 29.
Nf5 {[%clk 0:00:40.9]} 29... Bh4+ {[%clk 0:00:22.4]} 30. Kd2 {[%clk 0:00:36.6]}
30... Rg4 {[%clk 0:00:10.5]} 31. Qxg4 {[%clk 0:00:33]} 1-0

[Event "*** Titled Tuesday Blitz"]
[Site "Chess.com"]
[Date "2020.05.26"]
[Round "3"]
[White "smshk35"]
[Black "HouseOfDurin"]
[Result "1-0"]
[WhiteElo "2295"]
[BlackElo "2040"]
[TimeControl "180+1"]
[EndTime "10:27:19 PDT"]
[Termination "smshk35 won on time"]

1. e4 {[%clk 0:03:00.9]} 1... c5 {[%clk 0:02:59.2]} 2. Nf3 {[%clk 0:03:00.4]}
2... Nc6 {[%clk 0:02:59.8]} 3. d4 {[%clk 0:02:59.8]} 3... cxd4 {[%clk
0:03:00.7]} 4. Nxd4 {[%clk 0:03:00.5]} 4... e5 {[%clk 0:03:01.4]} 5. Nb5 {[%clk
0:03:00.3]} 5... d6 {[%clk 0:03:01.6]} 6. N1c3 {[%clk 0:03:00.4]} 6... a6 {[%clk
0:03:02.1]} 7. Na3 {[%clk 0:02:59.8]} 7... b5 {[%clk 0:03:02.7]} 8. Nd5 {[%clk
0:02:59.7]} 8... Nf6 {[%clk 0:03:03.4]} 9. Nxf6+ {[%clk 0:02:59.9]} 9... Qxf6
{[%clk 0:02:29.8]} 10. c3 {[%clk 0:02:59.3]} 10... Be7 {[%clk 0:02:08.9]} 11.
Nc2 {[%clk 0:02:54]} 11... O-O {[%clk 0:02:04.2]} 12. h4 {[%clk 0:02:46.6]}
12... Qg6 {[%clk 0:01:52.6]} 13. h5 {[%clk 0:02:43.7]} 13... Qxe4+ {[%clk
0:01:50.7]} 14. Be2 {[%clk 0:02:41.8]} 14... Bb7 {[%clk 0:01:17.5]} 15. Be3
{[%clk 0:02:27.2]} 15... Qf5 {[%clk 0:00:53.7]} 16. Bg4 {[%clk 0:02:20.1]} 16...
Qf6 {[%clk 0:00:49]} 17. h6 {[%clk 0:02:17.5]} 17... g6 {[%clk 0:00:46.4]} 18.
Qd2 {[%clk 0:02:14.6]} 18... Rfd8 {[%clk 0:00:31.2]} 19. O-O-O {[%clk
0:02:03.1]} 19... d5 {[%clk 0:00:25.9]} 20. f4 {[%clk 0:02:02.9]} 20... d4
{[%clk 0:00:18.4]} 21. cxd4 {[%clk 0:01:53]} 21... exd4 {[%clk 0:00:17.7]} 22.
Nxd4 {[%clk 0:01:47.1]} 22... Rac8 {[%clk 0:00:16.7]} 23. Kb1 {[%clk 0:01:39.4]}
23... Bb4 {[%clk 0:00:15.5]} 24. Qf2 {[%clk 0:01:35.8]} 24... Bc5 {[%clk
0:00:12.1]} 25. Nxc6 {[%clk 0:01:30.6]} 25... Bxe3 {[%clk 0:00:12]} 26. Qxe3
{[%clk 0:01:30.5]} 26... Bxc6 {[%clk 0:00:12.1]} 27. Bxc8 {[%clk 0:01:30.3]}
27... Rxc8 {[%clk 0:00:10.8]} 28. Qd2 {[%clk 0:01:22.9]} 28... Qe7 {[%clk
0:00:08.2]} 29. Rhe1 {[%clk 0:01:22.3]} 29... Qc7 {[%clk 0:00:07.8]} 30. Qd4
{[%clk 0:01:15]} 30... f5 {[%clk 0:00:07.2]} 31. Qd6 {[%clk 0:01:13.3]} 31...
Be4+ {[%clk 0:00:06.7]} 32. Ka1 {[%clk 0:01:05.2]} 32... Qc2 {[%clk 0:00:04.2]}
33. Qe7 {[%clk 0:00:59.9]} 33... Qc7 {[%clk 0:00:01.6]} 34. Qxc7 {[%clk
0:00:57.8]} 34... Rxc7 {[%clk 0:00:02.5]} 35. Rc1 {[%clk 0:00:56.9]} 35... Rd7
{[%clk 0:00:02.1]} 36. Red1 {[%clk 0:00:56.6]} 36... Re7 {[%clk 0:00:02.2]} 37.
g3 {[%clk 0:00:56.4]} 37... Kf7 {[%clk 0:00:02.5]} 38. Rc8 {[%clk 0:00:50.4]}
1-0

[Event "*** Titled Tuesday Blitz"]
[Site "Chess.com"]
[Date "2020.05.26"]
[Round "3"]
[White "AcsinteMatei"]
[Black "Mizner"]
[Result "1-0"]
[WhiteElo "2355"]
[BlackElo "2529"]
[TimeControl "180+1"]
[EndTime "10:27:20 PDT"]
[Termination "AcsinteMatei won on time"]

1. d4 {[%clk 0:03:00.9]} 1... d5 {[%clk 0:02:59.6]} 2. Bf4 {[%clk 0:03:00]} 2...
c5 {[%clk 0:02:58.8]} 3. e3 {[%clk 0:02:57.7]} 3... cxd4 {[%clk 0:02:59.1]} 4.
exd4 {[%clk 0:02:57.2]} 4... Nc6 {[%clk 0:03:00]} 5. c3 {[%clk 0:02:54.5]} 5...
Bf5 {[%clk 0:03:00.7]} 6. Nd2 {[%clk 0:02:52.4]} 6... f6 {[%clk 0:02:58]} 7.
Ngf3 {[%clk 0:02:52.1]} 7... g5 {[%clk 0:02:56.4]} 8. Bg3 {[%clk 0:02:50.7]}
8... h5 {[%clk 0:02:51.1]} 9. h3 {[%clk 0:02:49.5]} 9... e6 {[%clk 0:02:50]} 10.
Nb3 {[%clk 0:02:48.9]} 10... Bd6 {[%clk 0:02:43.9]} 11. Bd3 {[%clk 0:02:36.8]}
11... Nge7 {[%clk 0:02:40.6]} 12. Bxd6 {[%clk 0:02:29.1]} 12... Qxd6 {[%clk
0:02:39.7]} 13. Bxf5 {[%clk 0:02:23.6]} 13... Nxf5 {[%clk 0:02:39.6]} 14. Qe2
{[%clk 0:02:24.1]} 14... O-O-O {[%clk 0:02:35.1]} 15. O-O-O {[%clk 0:02:23]}
15... Kb8 {[%clk 0:01:33.5]} 16. Nc5 {[%clk 0:02:20.2]} 16... Rde8 {[%clk
0:01:13.3]} 17. g4 {[%clk 0:02:11.4]} 17... hxg4 {[%clk 0:00:59.8]} 18. hxg4
{[%clk 0:02:12.3]} 18... Nh4 {[%clk 0:01:00.2]} 19. Nxh4 {[%clk 0:01:44]} 19...
gxh4 {[%clk 0:00:57.6]} 20. Rh3 {[%clk 0:01:44]} 20... e5 {[%clk 0:00:45.8]} 21.
Qb5 {[%clk 0:01:43.6]} 21... Re7 {[%clk 0:00:43.3]} 22. dxe5 {[%clk 0:01:40]}
22... Qxe5 {[%clk 0:00:27.7]} 23. Re3 {[%clk 0:01:40.4]} 23... Qf4 {[%clk
0:00:26.6]} 24. Kb1 {[%clk 0:01:41]} 24... Rhe8 {[%clk 0:00:23.8]} 25. Nxb7
{[%clk 0:01:34.2]} 25... Qc4 {[%clk 0:00:08.9]} 26. Qxc4 {[%clk 0:01:07.8]}
26... dxc4 {[%clk 0:00:09.8]} 27. Rxe7 {[%clk 0:01:06.5]} 27... Rxe7 {[%clk
0:00:10.7]} 28. Nc5 {[%clk 0:01:02.8]} 28... Re2 {[%clk 0:00:10.6]} 29. Rh1
{[%clk 0:00:59.3]} 29... Rxf2 {[%clk 0:00:08]} 30. Rxh4 {[%clk 0:00:58.9]} 30...
Ne5 {[%clk 0:00:08.3]} 31. a4 {[%clk 0:00:54.6]} 31... Kc7 {[%clk 0:00:08.3]}
32. Rh7+ {[%clk 0:00:52.8]} 32... Kc6 {[%clk 0:00:08.5]} 33. Ne4 {[%clk
0:00:49.9]} 33... Rf1+ {[%clk 0:00:07.9]} 34. Ka2 {[%clk 0:00:50.4]} 34... Nd3
{[%clk 0:00:08.2]} 35. Rh6 {[%clk 0:00:45.1]} 35... Kd5 {[%clk 0:00:01.9]} 36.
Rxf6 {[%clk 0:00:44.1]} 1-0

[Event "*** Titled Tuesday Blitz"]
[Site "Chess.com"]
[Date "2020.05.26"]
[Round "3"]
[White "Parkas"]
[Black "Alexandercs432"]
[Result "0-1"]
[WhiteElo "2291"]
[BlackElo "2118"]
[TimeControl "180+1"]
[EndTime "10:27:20 PDT"]
[Termination "Alexandercs432 won on time"]

1. e4 {[%clk 0:02:59.9]} 1... e5 {[%clk 0:02:59.4]} 2. Nc3 {[%clk 0:02:54.4]}
2... Nf6 {[%clk 0:02:59]} 3. Bc4 {[%clk 0:02:50.6]} 3... Nxe4 {[%clk 0:02:58.5]}
4. Bxf7+ {[%clk 0:02:46.1]} 4... Kxf7 {[%clk 0:02:58]} 5. Nxe4 {[%clk
0:02:45.3]} 5... d5 {[%clk 0:02:58.9]} 6. Ng3 {[%clk 0:02:45]} 6... Nc6 {[%clk
0:02:50.7]} 7. N1e2 {[%clk 0:02:36.2]} 7... Bd6 {[%clk 0:02:49.7]} 8. O-O {[%clk
0:02:28.3]} 8... Rf8 {[%clk 0:02:49.5]} 9. d3 {[%clk 0:02:22.9]} 9... Kg8 {[%clk
0:02:49]} 10. h3 {[%clk 0:02:03.7]} 10... Qe8 {[%clk 0:02:43.2]} 11. Be3 {[%clk
0:02:03.7]} 11... d4 {[%clk 0:02:40.1]} 12. Bd2 {[%clk 0:02:03.4]} 12... Qg6
{[%clk 0:02:38]} 13. Kh1 {[%clk 0:02:02.3]} 13... Ne7 {[%clk 0:02:36.6]} 14. Ne4
{[%clk 0:02:01.4]} 14... Nd5 {[%clk 0:02:33.8]} 15. N2g3 {[%clk 0:01:52.9]}
15... Bd7 {[%clk 0:02:30.7]} 16. c4 {[%clk 0:01:42.6]} 16... Nf4 {[%clk
0:02:29.5]} 17. c5 {[%clk 0:00:55.4]} 17... Be7 {[%clk 0:02:28.7]} 18. b4 {[%clk
0:00:55.2]} 18... Rf7 {[%clk 0:02:27.9]} 19. Kh2 {[%clk 0:00:21.7]} 19... Raf8
{[%clk 0:02:26.7]} 20. Bxf4 {[%clk 0:00:21.5]} 20... Rxf4 {[%clk 0:02:25.7]} 21.
f3 {[%clk 0:00:21.6]} 21... h5 {[%clk 0:02:22.5]} 22. a4 {[%clk 0:00:20.5]}
22... h4 {[%clk 0:02:20.9]} 23. Ne2 {[%clk 0:00:20.9]} 23... R4f5 {[%clk
0:02:07]} 24. Qd2 {[%clk 0:00:21.2]} 24... Bg5 {[%clk 0:01:53.5]} 25. Nxg5
{[%clk 0:00:20.1]} 25... Rxg5 {[%clk 0:01:54.4]} 26. Rf2 {[%clk 0:00:17.8]}
26... Rff5 {[%clk 0:01:38.4]} 27. Nc1 {[%clk 0:00:13.2]} 27... Rg3 {[%clk
0:01:35.7]} 28. Qe2 {[%clk 0:00:11]} 28... Rfg5 {[%clk 0:01:31.2]} 29. Nb3
{[%clk 0:00:09.4]} 29... Qe6 {[%clk 0:01:21.3]} 30. Nd2 {[%clk 0:00:02.3]} 30...
Rxh3+ {[%clk 0:01:16.4]} 31. Kg1 {[%clk 0:00:02.9]} 31... Bc6 {[%clk 0:01:04]}
32. Ne4 {[%clk 0:00:03.2]} 32... Bxe4 {[%clk 0:01:04.1]} 33. Qxe4 {[%clk
0:00:04.1]} 33... c6 {[%clk 0:00:56.7]} 34. Re1 {[%clk 0:00:03.6]} 34... Rhg3
{[%clk 0:00:53.1]} 35. Qxh4 {[%clk 0:00:03.2]} 35... Qg6 {[%clk 0:00:46.6]} 0-1

[Event "*** Titled Tuesday Blitz"]
[Site "Chess.com"]
[Date "2020.05.26"]
[Round "3"]
[White "korbul"]
[Black "czasnaszachy"]
[Result "1-0"]
[WhiteElo "2577"]
[BlackElo "2371"]
[TimeControl "180+1"]
[EndTime "10:27:23 PDT"]
[Termination "korbul won on time"]

1. d4 {[%clk 0:03:00.9]} 1... d5 {[%clk 0:02:57]} 2. c4 {[%clk 0:03:00.2]} 2...
c6 {[%clk 0:02:56.7]} 3. Nf3 {[%clk 0:02:59.8]} 3... Nf6 {[%clk 0:02:54.1]} 4.
e3 {[%clk 0:02:59.9]} 4... e6 {[%clk 0:02:53]} 5. Nc3 {[%clk 0:02:58.4]} 5...
Nbd7 {[%clk 0:02:50.8]} 6. Be2 {[%clk 0:02:57.9]} 6... Bd6 {[%clk 0:02:44.5]} 7.
O-O {[%clk 0:02:55]} 7... dxc4 {[%clk 0:02:42.5]} 8. a4 {[%clk 0:02:51.1]} 8...
a6 {[%clk 0:02:13.5]} 9. Nd2 {[%clk 0:02:47.9]} 9... O-O {[%clk 0:02:05.2]} 10.
Nxc4 {[%clk 0:02:47.7]} 10... Bb8 {[%clk 0:02:04.9]} 11. a5 {[%clk 0:02:42.3]}
11... Nd5 {[%clk 0:02:01.1]} 12. e4 {[%clk 0:02:38.3]} 12... Nxc3 {[%clk
0:01:51.1]} 13. bxc3 {[%clk 0:02:37.5]} 13... e5 {[%clk 0:01:48.4]} 14. dxe5
{[%clk 0:02:23.7]} 14... Bxe5 {[%clk 0:01:47.7]} 15. Nxe5 {[%clk 0:02:20]} 15...
Nxe5 {[%clk 0:01:47.4]} 16. Ba3 {[%clk 0:02:11.8]} 16... Re8 {[%clk 0:01:29.4]}
17. Bd6 {[%clk 0:01:41.6]} 17... Ng6 {[%clk 0:01:07.1]} 18. f3 {[%clk
0:01:08.3]} 18... Be6 {[%clk 0:01:01.5]} 19. c4 {[%clk 0:01:07.8]} 19... Qg5
{[%clk 0:00:54.9]} 20. Qc1 {[%clk 0:00:58.6]} 20... Qf6 {[%clk 0:00:17.5]} 21.
c5 {[%clk 0:00:53.7]} 21... Rad8 {[%clk 0:00:16.9]} 22. Rb1 {[%clk 0:00:52.5]}
22... Qd4+ {[%clk 0:00:16.4]} 23. Kh1 {[%clk 0:00:51.5]} 23... Rd7 {[%clk
0:00:16.9]} 24. Qd1 {[%clk 0:00:40.2]} 24... Qf6 {[%clk 0:00:15]} 25. Qd2 {[%clk
0:00:37.3]} 25... Red8 {[%clk 0:00:14.5]} 26. Qe3 {[%clk 0:00:35.2]} 26... h5
{[%clk 0:00:10.5]} 27. f4 {[%clk 0:00:34.8]} 27... Bg4 {[%clk 0:00:05.3]} 28.
Bd3 {[%clk 0:00:34.6]} 28... Nf8 {[%clk 0:00:04]} 29. h3 {[%clk 0:00:33.6]}
29... Be6 {[%clk 0:00:02.2]} 30. e5 {[%clk 0:00:32.9]} 30... Qh6 {[%clk
0:00:01.3]} 31. Qe4 {[%clk 0:00:30.8]} 1-0

[Event "*** Titled Tuesday Blitz"]
[Site "Chess.com"]
[Date "2020.05.26"]
[Round "3"]
[White "Danfii"]
[Black "HarutyunianTigranK"]
[Result "1-0"]
[WhiteElo "2411"]
[BlackElo "2698"]
[TimeControl "180+1"]
[EndTime "10:27:24 PDT"]
[Termination "Danfii won by checkmate"]

1. e4 {[%clk 0:03:00.9]} 1... e5 {[%clk 0:02:58.1]} 2. Nf3 {[%clk 0:03:00.6]}
2... Nc6 {[%clk 0:02:57.8]} 3. Bc4 {[%clk 0:03:00.4]} 3... Bc5 {[%clk
0:02:57.5]} 4. O-O {[%clk 0:03:00.1]} 4... Nf6 {[%clk 0:02:57.7]} 5. d3 {[%clk
0:03:00.4]} 5... O-O {[%clk 0:02:57.1]} 6. Nbd2 {[%clk 0:03:00]} 6... a5 {[%clk
0:02:54.3]} 7. c3 {[%clk 0:02:58.1]} 7... d6 {[%clk 0:02:53.7]} 8. h3 {[%clk
0:02:57.5]} 8... h6 {[%clk 0:02:53.2]} 9. Re1 {[%clk 0:02:57.3]} 9... a4 {[%clk
0:02:50.8]} 10. Bb5 {[%clk 0:02:53.9]} 10... Bd7 {[%clk 0:02:50.7]} 11. Nf1
{[%clk 0:02:53.4]} 11... Ne7 {[%clk 0:02:50]} 12. Bxd7 {[%clk 0:02:51.6]} 12...
Qxd7 {[%clk 0:02:46.4]} 13. d4 {[%clk 0:02:47.9]} 13... exd4 {[%clk 0:02:31.6]}
14. cxd4 {[%clk 0:02:48.8]} 14... Bb6 {[%clk 0:02:31.7]} 15. Ng3 {[%clk
0:02:48]} 15... Ng6 {[%clk 0:02:29.9]} 16. Be3 {[%clk 0:02:46.1]} 16... Rfe8
{[%clk 0:02:29.8]} 17. Qc2 {[%clk 0:02:45.8]} 17... Qb5 {[%clk 0:02:22]} 18. d5
{[%clk 0:02:42.1]} 18... Ba5 {[%clk 0:01:57.4]} 19. Rec1 {[%clk 0:02:30]} 19...
Rac8 {[%clk 0:01:49.1]} 20. Qc4 {[%clk 0:02:17]} 20... Qd7 {[%clk 0:01:46.5]}
21. b4 {[%clk 0:02:07.2]} 21... b5 {[%clk 0:01:42.5]} 22. Qc3 {[%clk 0:01:56.5]}
22... Bb6 {[%clk 0:01:40]} 23. Bxb6 {[%clk 0:01:53.4]} 23... cxb6 {[%clk
0:01:40.9]} 24. Qd3 {[%clk 0:01:53.8]} 24... Nf4 {[%clk 0:01:34.6]} 25. Qd2
{[%clk 0:01:50.8]} 25... Ng6 {[%clk 0:01:27.3]} 26. Rxc8 {[%clk 0:01:45.3]}
26... Rxc8 {[%clk 0:01:22.8]} 27. Rc1 {[%clk 0:01:45.2]} 27... Rc4 {[%clk
0:01:22.2]} 28. Nd4 {[%clk 0:01:30.8]} 28... Qc8 {[%clk 0:01:20.1]} 29. Nc6
{[%clk 0:01:25.8]} 29... Qe8 {[%clk 0:01:14.1]} 30. f3 {[%clk 0:01:23.4]} 30...
Ne5 {[%clk 0:01:14]} 31. Nxe5 {[%clk 0:01:11.7]} 31... Qxe5 {[%clk 0:01:13.6]}
32. Nf5 {[%clk 0:01:08.6]} 32... Nxd5 {[%clk 0:01:06.9]} 33. Rxc4 {[%clk
0:00:53.5]} 33... bxc4 {[%clk 0:01:04.8]} 34. Qxd5 {[%clk 0:00:52.6]} 34... Qa1+
{[%clk 0:01:01.5]} 35. Kh2 {[%clk 0:00:52.4]} 35... c3 {[%clk 0:01:01.7]} 36.
Qc4 {[%clk 0:00:27.3]} 36... Qc1 {[%clk 0:00:57.4]} 37. Ne7+ {[%clk 0:00:20.2]}
37... Kh7 {[%clk 0:00:53.5]} 38. Qxf7 {[%clk 0:00:20]} 38... c2 {[%clk
0:00:39.1]} 39. Qg8# {[%clk 0:00:18.6]} 1-0